bitfinex-derivatives/quotes_BTCF0:USTF0_20210108
["timestamp","ask_amount","ask_price","bid_price","bid_amount"]
[1610143947725,1.49217279,40005.0,40004.0,0.00029974]
[1610143949228,1.89717279,40005.0,40004.0,0.00029974]
[1610143949432,0.98596877,40005.0,40004.0,0.00029974]
[1610143950231,1.89670401,40005.0,40004.0,0.00029974]
[1610143950633,1.53008384,40005.0,40004.0,0.00029974]
[1610143951035,1.89671186,40005.0,40004.0,0.00029974]
[1610143951434,1.53008384,40005.0,40004.0,0.00029974]
[1610143952235,0.98596877,40005.0,40004.0,0.00029974]
[1610143953136,1.52952167,40005.0,40004.0,0.00029974]
[1610143953435,0.98596877,40005.0,40004.0,0.00029974]
[1610143955537,0.98596877,40005.0,39968.0,0.11623]
[1610143955837,0.13632608,39992.0,39988.0,0.13632608]
[1610143956137,0.72467608,39992.0,39972.0,3.1388]
[1610143956540,0.72467608,39992.0,39962.0,0.08798]
[1610143956541,3.73,39976.0,39973.0,0.00029986]
[1610143957140,3.73,39976.0,39963.0,0.00029988]
[1610143957442,3.73,39976.0,39974.0,0.00029988]
[1610143957641,0.10826,39981.0,39963.0,0.03088574]
[1610143957941,3.7533,39975.0,39974.0,0.13632608]
[1610143958142,3.7533,39975.0,39964.0,0.00029989]
[1610143958341,0.10826,39981.0,39964.0,0.00029989]
[1610143958542,0.10826,39981.0,39974.0,0.00029991]
[1610143958744,0.10826,39981.0,39965.0,0.00029995]
[1610143958942,0.10826,39981.0,39954.0,0.03059297]
[1610143959142,3.421,39966.0,39954.0,0.03059297]
[1610143959343,3.52275,39966.0,39954.0,0.03059297]
[1610143959545,3.52275,39966.0,39950.0,0.0309017]
[1610143959747,3.52275,39966.0,39950.0,0.00030005]
[1610143960044,0.13632608,39958.0,39951.0,0.13662613]
[1610143960245,0.13632608,39958.0,39951.0,0.13632608]
[1610143960644,0.24185608,39958.0,39951.0,0.13632608]
[1610143961146,0.5522,39957.0,39951.0,0.13632608]
[1610143961345,0.5522,39957.0,39952.0,0.00030008]
[1610143962045,0.5522,39957.0,39950.0,0.00030008]
[1610143962446,0.24185608,39958.0,39950.0,0.00030008]
[1610143962652,2.9768,39951.0,39950.0,0.00030008]
[1610143962847,2.9768,39951.0,39946.0,0.13632608]
[1610143963149,2.9768,39951.0,39950.0,0.00030009]
[1610143963349,2.9768,39951.0,39947.0,0.00030011]
[1610143964053,0.13632608,39948.0,39937.0,0.13632608]
[1610143964354,3.5299,39930.0,39921.0,0.11195]
[1610143964551,0.24743608,39948.0,39921.0,0.11195]
[1610143964752,3.3852,39922.0,39921.0,0.11195]
[1610143965155,3.3852,39922.0,39913.0,0.12339]
[1610143965453,3.3852,39922.0,39914.0,0.00030024]
[1610143965854,0.13632608,39915.0,39904.0,2.9754]
[1610143966056,0.13632608,39915.0,39901.0,0.09533]
[1610143966257,3.6159,39904.0,39901.0,0.09533]
[1610143966456,0.13632608,39915.0,39901.0,0.09533]
[1610143966655,0.22289608,39915.0,39902.0,0.00030037]
[1610143966856,3.0071,39903.0,39902.0,0.00030037]
[1610143967056,3.0071,39903.0,39889.0,0.11081]
[1610143967469,0.10149,39905.0,39844.0,0.1569]
[1610143967758,0.10149,39905.0,39871.0,0.09049]
[1610143967960,0.13632608,39898.0,39871.0,0.09049]
[1610143968359,0.13632608,39898.0,39867.0,0.13632608]
[1610143969060,0.13632608,39898.0,39829.0,0.1569]
[1610143969362,0.13632608,39898.0,39835.0,3.994]
[1610143970063,0.13632608,39898.0,39850.0,0.13632608]
[1610143970262,0.13632608,39898.0,39835.0,3.994]
[1610143970463,0.13632608,39898.0,39813.0,0.1569]
[1610143970662,0.13632608,39898.0,39825.0,3.5615]
[1610143971063,3.8208,39853.0,39825.0,3.5615]
[1610143971363,0.11877,39857.0,39790.0,2.38067729]
[1610143971572,3.2877,39833.0,39795.0,3.3592]
[1610143971972,0.13632608,39828.0,39808.0,0.13632608]
[1610143972364,0.5781,39818.0,39808.0,0.13632608]
[1610143972568,3.0618,39814.0,39795.0,3.3592]
[1610143973964,0.13632608,39807.0,39793.0,0.13632608]
[1610143974166,3.5325,39803.0,39793.0,0.13632608]
[1610143976669,0.25757608,39807.0,39793.0,0.13632608]
[1610143977070,3.5818,39794.0,39793.0,0.13632608]
[1610143978072,0.13632608,39794.0,39793.0,0.13632608]
[1610143978672,0.08819,39797.0,39793.0,0.13632608]
[1610143979173,0.12125,39807.0,39793.0,0.13632608]
[1610143979672,0.12125,39807.0,39796.0,3.9403]
[1610143980073,0.12125,39807.0,39802.0,0.13632608]
[1610143980475,0.12125,39807.0,39804.0,0.4824]
[1610143980877,0.12125,39807.0,39802.0,0.13632608]
[1610143981174,0.09027,39815.0,39806.0,3.6948]
[1610143981377,0.2829,39850.0,39806.0,3.6948]
[1610143981875,0.2829,39850.0,39826.0,3.395]
[1610143982079,3.4095,39877.0,39849.0,0.13632608]
[1610143982376,0.28,39876.0,39861.0,3.1025]
[1610143982695,0.09023,39876.0,39861.0,3.1025]
[1610143983585,0.09023,39876.0,39849.0,0.21608608]
[1610143983793,0.07888,39885.0,39849.0,0.21608608]
[1610143983987,0.07888,39885.0,39884.0,0.13632608]
[1610143984478,0.07888,39885.0,39884.0,4.32122608]
[1610143988180,2.9053,39948.0,39884.0,4.32122608]
[1610143988181,0.13632608,39920.0,39884.0,4.43678608]
[1610143988379,2.9053,39948.0,39884.0,4.43678608]
[1610143990081,2.9053,39948.0,39926.0,0.13632608]
[1610143990281,0.2737,39966.0,39926.0,0.13632608]
[1610143990683,0.2737,39966.0,39929.0,4.1169]
[1610143992083,0.13632608,39930.0,39929.0,4.1169]
[1610143994087,0.13632608,39930.0,39929.0,4.25322608]
[1610143998499,0.12332,39937.0,39929.0,4.25322608]
[1610143998895,0.2737,39966.0,39929.0,4.25322608]
[1610143999096,0.2737,39966.0,39929.0,0.13632608]
[1610143999298,0.2737,39966.0,39943.0,3.9224]
[1610144000098,0.13632608,39944.0,39943.0,4.05872608]
[1610144002302,0.1051,39946.0,39943.0,4.05872608]
[1610144005302,0.13632608,39954.0,39943.0,4.05872608]
[1610144006102,0.13632608,39954.0,39953.0,0.13632608]
[1610144006304,0.13632608,39954.0,39953.0,0.71322608]
[1610144007806,0.2737,39966.0,39953.0,0.71322608]
[1610144008206,0.13632608,39958.0,39953.0,0.5769]
[1610144008807,0.23864608,39958.0,39953.0,0.5769]
[1610144013914,0.23864608,39958.0,39924.0,0.10012]
[1610144014315,0.13632608,39941.0,39931.0,0.13632608]
[1610144014512,0.25690608,39941.0,39927.0,3.2723]
[1610144014713,0.25690608,39941.0,39915.0,0.09234]
[1610144014915,0.25690608,39941.0,39921.0,3.5944]
[1610144016214,0.13632608,39925.0,39921.0,3.5944]
[1610144016515,0.13632608,39925.0,39885.0,0.2762]
[1610144016714,0.13632608,39925.0,39910.0,4.0743]
[1610144018218,0.13632608,39911.0,39910.0,4.0743]
[1610144018520,0.25767608,39911.0,39898.0,3.69612608]
[1610144020020,0.25767608,39911.0,39898.0,0.13632608]
[1610144020220,0.13632608,39900.0,39898.0,0.13632608]
[1610144020420,0.21733608,39900.0,39898.0,0.13632608]
[1610144020620,0.21733608,39900.0,39889.0,0.0285]
[1610144022223,0.13632608,39890.0,39889.0,0.0285]
[1610144031532,0.13632608,39890.0,39889.0,0.6203]
[1610144032533,0.13632608,39890.0,39889.0,0.0285]
[1610144032936,4.0817,39892.0,39889.0,0.0285]
[1610144034334,0.13632608,39890.0,39889.0,0.0285]
[1610144055251,0.0969,39891.0,39889.0,0.0287994]
[1610144055450,0.08101,39900.0,39889.0,0.0287994]
[1610144055649,0.00765807,39907.0,39889.0,0.0287994]
[1610144055850,0.2822,39910.0,39890.0,0.00029937]
[1610144055851,0.28985767,39910.0,39890.0,0.00029937]
[1610144056152,0.2822,39910.0,39890.0,0.00029937]
[1610144056351,0.13632608,39896.0,39894.0,0.13632608]
[1610144056652,0.22864608,39896.0,39894.0,0.13632608]
[1610144056853,0.22864608,39896.0,39895.0,0.4227]
[1610144057051,0.09232,39896.0,39895.0,0.42299936]
[1610144057553,0.2822,39910.0,39895.0,0.42299936]
[1610144057754,0.2822,39910.0,39895.0,0.28522525]
[1610144057954,0.2822,39910.0,39896.0,0.0002993]
[1610144058452,0.13632608,39904.0,39896.0,0.0002993]
[1610144060955,0.13632608,39904.0,39900.0,3.4725]
[1610144061354,0.13632608,39904.0,39901.0,0.00029923]
[1610144061556,0.2822,39910.0,39901.0,0.00029923]
[1610144062357,0.2822,39910.0,39909.0,0.13632608]
[1610144062658,0.2822,39910.0,39909.0,0.56452608]
[1610144062861,0.2822,39910.0,39909.0,0.56482526]
[1610144064062,0.2822,39910.0,39909.0,2.06482526]
[1610144065861,0.2822,39910.0,39909.0,2.18919526]
[1610144076468,0.2822,39910.0,39909.0,0.68919526]
[1610144079572,0.2822,39910.0,39909.0,0.71982983]
[1610144082874,0.2822,39910.0,39909.0,0.68919526]
[1610144083375,0.2822,39910.0,39909.0,0.71982785]
[1610144088377,0.2822,39910.0,39909.0,0.78109243]
[1610144095387,0.2822,39910.0,39909.0,0.65672243]
[1610144095887,0.2822,39910.0,39909.0,0.45913177]
[1610144097088,0.2822,39910.0,39909.0,0.03093177]
[1610144097387,0.2822,39910.0,39900.0,4.09383941]
[1610144097588,0.2822,39910.0,39909.0,0.03094073]
[1610144097888,0.2822,39910.0,39901.0,0.03094069]
[1610144098187,0.2822,39910.0,39909.0,0.03094067]
[1610144098388,0.2822,39910.0,39902.0,0.03094075]
[1610144098789,0.13632608,39903.0,39901.0,0.0309408]
[1610144098992,0.13632608,39903.0,39900.0,4.0629]
[1610144099189,0.13632608,39903.0,39902.0,0.03094085]
[1610144099589,0.13632608,39903.0,39901.0,0.03094087]
[1610144099789,0.13632608,39903.0,39902.0,0.030941]
[1610144100393,0.13632608,39903.0,39901.0,0.030941]
[1610144100692,0.13632608,39903.0,39902.0,0.030941]
[1610144101193,0.13632608,39903.0,39901.0,0.03094063]
[1610144101398,0.13632608,39903.0,39902.0,0.03094057]
[1610144101896,0.13632608,39903.0,39901.0,0.03094119]
[1610144102094,0.13632608,39903.0,39902.0,0.03094089]
[1610144102593,0.13632608,39903.0,39892.0,3.49074106]
[1610144102793,0.13632608,39903.0,39902.0,0.03094268]
[1610144102995,0.13632608,39903.0,39892.0,3.4598]
[1610144102996,0.13632608,39903.0,39893.0,0.03094383]
[1610144103193,0.13632608,39903.0,39902.0,0.00029859]
[1610144103494,0.13632608,39903.0,39894.0,0.03094539]
[1610144103795,0.13632608,39903.0,39902.0,0.00029859]
[1610144103996,0.13632608,39903.0,39893.0,0.0306473]
[1610144103997,0.13632608,39903.0,39895.0,0.03094665]
[1610144104293,0.13632608,39903.0,39902.0,0.00029861]
[1610144104495,0.13632608,39903.0,39896.0,0.03094786]
[1610144104894,0.13632608,39897.0,39895.0,0.03064998]
[1610144105195,0.13632608,39897.0,39889.0,0.0285]
[1610144105394,0.13632608,39897.0,39896.0,0.03094816]
[1610144105695,0.13632608,39897.0,39890.0,0.03094806]
[1610144105895,0.13632608,39897.0,39896.0,0.03094864]
[1610144106194,0.13632608,39897.0,39891.0,0.00029862]
[1610144106395,0.13632608,39897.0,39896.0,0.00029862]
[1610144106595,0.13632608,39897.0,39892.0,0.00029867]
[1610144106794,0.13632608,39893.0,39892.0,0.00029867]
[1610144106999,0.63722608,39893.0,39890.0,0.03065383]
[1610144107295,0.63722608,39893.0,39892.0,0.00029961]
[1610144107594,0.63722608,39893.0,39890.0,0.00029961]
[1610144107795,0.63722608,39893.0,39892.0,0.00029961]
[1610144107996,0.63722608,39893.0,39891.0,0.00029961]
[1610144108201,0.63722608,39893.0,39892.0,0.00029961]
[1610144108798,0.63722608,39893.0,39890.0,0.00029961]
[1610144108997,0.63722608,39893.0,39892.0,0.00029961]
[1610144109198,0.63722608,39893.0,39891.0,0.00029963]
[1610144109601,0.63722608,39893.0,39889.0,0.0285]
[1610144109799,0.63722608,39893.0,39892.0,0.00029962]
[1610144110100,0.63722608,39893.0,39890.0,0.00029962]
[1610144110299,0.63722608,39893.0,39892.0,0.00029962]
[1610144110500,0.63722608,39893.0,39891.0,0.00029962]
[1610144110799,0.74465608,39893.0,39890.0,0.00029964]
[1610144111302,0.24375608,39893.0,39890.0,0.00029964]
[1610144111504,4.1562,39891.0,39890.0,0.00029964]
[1610144111901,4.1562,39891.0,39890.0,0.00029967]
[1610144112202,0.24375608,39893.0,39890.0,0.00029967]
[1610144113405,3.3096,39891.0,39890.0,0.00029967]
[1610144115608,3.31727007,39891.0,39890.0,0.00029967]
[1610144116006,4.66906803,39891.0,39890.0,0.00029967]
[1610144116409,3.76043221,39891.0,39890.0,0.00029967]
[1610144116708,4.66889878,39891.0,39890.0,0.00029967]
[1610144117007,4.66889878,39891.0,39889.0,0.0285]
[1610144117609,1.35843169,39890.0,39889.0,0.0285]
[1610144118508,0.45035988,39890.0,39889.0,0.0285]
[1610144119410,0.99050261,39890.0,39889.0,0.0285]
[1610144119810,0.45035988,39890.0,39889.0,0.0285]
[1610144120711,0.01516295,39890.0,39889.0,0.0285]
[1610144121114,0.00765843,39890.0,39889.0,0.0285]
[1610144122114,3.93951999,39891.0,39889.0,0.0285]
[1610144122614,3.9243533,39891.0,39890.0,0.0002997]
[1610144123013,3.93951148,39891.0,39890.0,0.0002997]
[1610144123414,3.9243533,39891.0,39890.0,0.0002997]
[1610144123914,3.9167,39891.0,39890.0,0.0002997]
[1610144124614,0.26657264,39893.0,39890.0,0.0002997]
[1610144125020,0.24375608,39893.0,39890.0,0.0002997]
[1610144126918,0.24375608,39893.0,39891.0,0.13632608]
[1610144127118,0.13632608,39893.0,39891.0,0.13632608]
[1610144127520,0.13632608,39893.0,39892.0,0.03095741]
[1610144128821,0.13632608,39897.0,39892.0,0.03095741]
[1610144130921,0.13632608,39897.0,39896.0,0.13632608]
[1610144131422,0.13632608,39897.0,39896.0,0.16728123]
[1610144131722,0.2822,39910.0,39896.0,0.16728123]
[1610144132125,0.2822,39910.0,39897.0,0.03095667]
[1610144133022,0.13632608,39902.0,39900.0,0.13632608]
[1610144133523,0.13632608,39902.0,39901.0,0.00029957]
[1610144134226,0.13632608,39902.0,39893.0,3.00104387]
[1610144134724,0.13632608,39902.0,39894.0,0.03094998]
[1610144134924,0.13632608,39902.0,39901.0,0.13632608]
[1610144135225,0.13632608,39902.0,39894.0,0.03094998]
[1610144135424,0.13632608,39902.0,39901.0,0.0002965]
[1610144135624,0.13632608,39902.0,39895.0,0.03095029]
[1610144135827,0.13632608,39902.0,39901.0,0.0002965]
[1610144136127,0.13632608,39902.0,39894.0,0.03094984]
[1610144136527,0.13632608,39902.0,39901.0,0.0002965]
[1610144136727,0.13632608,39902.0,39895.0,0.0002965]
[1610144136930,0.13632608,39902.0,39901.0,0.0002965]
[1610144137329,0.13632608,39902.0,39896.0,0.13662258]
[1610144137531,0.13632608,39902.0,39901.0,0.0002965]
[1610144137729,0.13632608,39902.0,39897.0,0.03095035]
[1610144138031,0.13632608,39902.0,39901.0,0.0002965]
[1610144138232,0.13632608,39902.0,39898.0,0.0002965]
[1610144138632,0.13632608,39902.0,39901.0,0.0002965]
[1610144138831,0.13632608,39902.0,39899.0,0.0002965]
[1610144139045,0.13632608,39902.0,39901.0,0.0002965]
[1610144139332,0.13632608,39902.0,39900.0,0.0002965]
[1610144139632,0.13632608,39902.0,39901.0,0.0002965]
[1610144140234,0.13632608,39902.0,39898.0,0.00029652]
[1610144140438,0.13632608,39902.0,39901.0,0.00029652]
[1610144140636,0.13632608,39902.0,39899.0,0.00029652]
[1610144140836,0.13632608,39902.0,39901.0,0.0002965]
[1610144141234,0.13632608,39902.0,39894.0,0.0309502]
[1610144141433,0.13632608,39902.0,39901.0,0.0002965]
[1610144141836,0.13632608,39902.0,39895.0,0.0002965]
[1610144142034,0.13632608,39902.0,39901.0,0.0002965]
[1610144142335,0.13632608,39902.0,39896.0,0.0002965]
[1610144142634,0.13632608,39902.0,39901.0,0.0002965]
[1610144142834,0.13632608,39902.0,39894.0,0.0306537]
[1610144142835,0.13632608,39902.0,39897.0,0.0002965]
[1610144143036,0.13632608,39898.0,39894.0,0.0306537]
[1610144143541,0.13632608,39898.0,39894.0,0.0309502]
[1610144146642,0.13632608,39898.0,39894.0,0.09225668]
[1610144146941,0.13632608,39898.0,39894.0,0.0309502]
[1610144147341,0.13632608,39898.0,39895.0,0.03095026]
[1610144147842,0.13632608,39898.0,39894.0,0.0309499]
[1610144148043,0.13632608,39898.0,39896.0,0.0309496]
[1610144148243,0.13632608,39898.0,39894.0,0.09225526]
[1610144151547,0.29907698,39898.0,39894.0,0.09225526]
[1610144152750,0.29907698,39898.0,39894.0,0.18421396]
[1610144153149,0.29907698,39898.0,39897.0,0.13632608]
[1610144153552,0.29907698,39898.0,39897.0,0.16727583]
[1610144161356,0.29907698,39898.0,39897.0,0.03094975]
[1610144161856,0.29907698,39898.0,39890.0,0.1842106]
[1610144162061,0.29907698,39898.0,39897.0,0.03094971]
[1610144162259,0.85077698,39898.0,39891.0,0.03095152]
[1610144162459,0.29907698,39898.0,39897.0,0.03065572]
[1610144162655,0.29907698,39898.0,39897.0,0.03095256]
[1610144162857,0.29907698,39898.0,39890.0,0.03095444]
[1610144162858,3.56307698,39898.0,39890.0,0.03095444]
[1610144163057,3.56307698,39898.0,39897.0,0.03095744]
[1610144163258,4.01315506,39898.0,39897.0,0.03066054]
[1610144163459,4.01315506,39898.0,39891.0,0.0309587]
[1610144163657,6.13039903,39898.0,39897.0,0.00029696]
[1610144163859,6.13039903,39898.0,39892.0,0.03096309]
[1610144164060,0.65841911,39894.0,39890.0,0.03066604]
[1610144164458,0.74781792,39896.0,39893.0,0.03096307]
[1610144164760,1.64586207,39894.0,39891.0,0.03096245]
[1610144164958,1.64586207,39894.0,39889.0,0.0285]
[1610144165158,1.66718357,39897.0,39889.0,0.0285]
[1610144165159,0.74756337,39895.0,39892.0,0.03096475]
[1610144165361,0.74756337,39895.0,39890.0,0.03096451]
[1610144165559,1.64481432,39893.0,39890.0,0.03096451]
[1610144165961,4.45405613,39891.0,39890.0,0.03096451]
[1610144166161,4.54489613,39891.0,39890.0,0.03096451]
[1610144166461,1.73539613,39891.0,39890.0,0.03096451]
[1610144166761,2.6545919,39891.0,39890.0,0.03096451]
[1610144167264,2.79091798,39891.0,39890.0,0.03096451]
[1610144167663,2.23940052,39891.0,39890.0,0.03096451]
[1610144168065,2.79091998,39891.0,39890.0,0.03096451]
[1610144168964,6.78721998,39891.0,39890.0,0.03096451]
[1610144169363,6.24899889,39891.0,39890.0,0.03096451]
[1610144169564,6.78532904,39891.0,39890.0,0.03096451]
[1610144169967,7.53182907,39891.0,39890.0,0.03096451]
[1610144170164,5.88916388,39891.0,39890.0,0.03096451]
[1610144170365,7.53142323,39891.0,39890.0,0.02943218]
[1610144170566,9.03142323,39891.0,39890.0,0.02943218]
[1610144170965,9.03142323,39891.0,39889.0,0.0285]
[1610144171168,5.03512323,39891.0,39889.0,0.0285]
[1610144171567,4.80426759,39890.0,39889.0,0.0285]
[1610144171968,8.67277545,39890.0,39889.0,0.0285]
[1610144172468,9.22450469,39890.0,39889.0,0.0285]
[1610144172870,9.22450469,39890.0,39850.0,0.07972]
[1610144173068,5.63900469,39890.0,39809.0,2.43129756]
[1610144173276,4.20782608,39854.0,39832.0,0.13632608]
[1610144173872,4.20782608,39854.0,39853.0,0.28439892]
[1610144175469,4.20782608,39854.0,39853.0,0.2841]
[1610144177877,4.22273609,39854.0,39853.0,0.2841]
[1610144178275,4.20782608,39854.0,39853.0,0.2841]
[1610144179779,0.13632608,39854.0,39853.0,0.2841]
[1610144180780,0.63892608,39854.0,39853.0,0.2841]
[1610144181881,0.13632608,39854.0,39853.0,0.2841]
[1610144182884,0.13632608,39854.0,39853.0,3.4941]
[1610144184992,0.12509,39861.0,39853.0,0.2841]
[1610144185190,0.00753677,39875.0,39860.0,2.9688]
[1610144185398,0.13632608,39874.0,39867.0,0.13632608]
[1610144185682,0.23501608,39874.0,39872.0,0.5968]
[1610144190389,0.23501608,39874.0,39873.0,0.00029879]
[1610144198495,4.05891608,39874.0,39873.0,0.00029879]
[1610144198795,4.05891608,39874.0,39856.0,3.9603]
[1610144198796,4.05891608,39874.0,39857.0,0.00029885]
[1610144199697,0.13632608,39858.0,39857.0,0.00029885]
[1610144199896,0.25786608,39858.0,39857.0,0.00029885]
[1610144200297,0.25786608,39858.0,39854.0,0.00029889]
[1610144200501,0.25786608,39858.0,39857.0,0.00029889]
[1610144200699,0.25786608,39858.0,39855.0,0.00029889]
[1610144201000,0.25786608,39858.0,39857.0,0.00029892]
[1610144201299,0.25786608,39858.0,39856.0,0.00029892]
[1610144201498,0.25786608,39858.0,39857.0,0.00029892]
[1610144201998,0.80046608,39858.0,39854.0,0.00029892]
[1610144202299,0.80046608,39858.0,39857.0,0.00029894]
[1610144202599,0.80046608,39858.0,39855.0,0.00029894]
[1610144202799,0.80046608,39858.0,39857.0,0.00029894]
[1610144203001,0.80046608,39858.0,39856.0,0.00029896]
[1610144203301,0.80046608,39858.0,39854.0,0.00029896]
[1610144203598,0.80046608,39858.0,39853.0,0.2841]
[1610144203800,0.80046608,39858.0,39855.0,0.00029895]
[1610144204199,0.80046608,39858.0,39854.0,0.00029895]
[1610144204400,0.80046608,39858.0,39856.0,0.00029895]
[1610144204600,0.80046608,39858.0,39855.0,0.00029895]
[1610144204900,0.80046608,39858.0,39857.0,0.00029895]
[1610144205100,0.80046608,39858.0,39856.0,0.00029895]
[1610144205401,0.80046608,39858.0,39854.0,0.00029895]
[1610144205701,0.80046608,39858.0,39857.0,0.00029895]
[1610144206000,0.80046608,39858.0,39855.0,0.00029895]
[1610144206200,0.80046608,39858.0,39857.0,0.00029895]
[1610144206501,0.80046608,39858.0,39856.0,0.00029895]
[1610144206701,0.80046608,39858.0,39853.0,0.2841]
[1610144207402,0.80046608,39858.0,39854.0,0.00029894]
[1610144210704,0.0748,39857.0,39854.0,0.00029894]
[1610144214309,0.64932642,39858.0,39854.0,0.00029894]
[1610144215009,0.64932642,39858.0,39854.0,3.22219894]
[1610144215508,0.64932642,39858.0,39855.0,0.00029752]
[1610144216811,0.64932642,39858.0,39855.0,0.03098408]
[1610144217715,0.51300034,39858.0,39857.0,4.04232608]
[1610144218115,0.51300034,39858.0,39857.0,4.07330499]
[1610144220718,0.51300034,39858.0,39857.0,4.13466233]
[1610144225421,0.51300034,39858.0,39857.0,0.22866233]
[1610144225719,0.51300034,39858.0,39857.0,0.09233625]
[1610144226020,0.51300034,39858.0,39857.0,0.03097891]
[1610144226423,0.51300034,39858.0,39853.0,0.2841]
[1610144226424,0.51300034,39858.0,39855.0,0.0309731]
[1610144226821,0.51300034,39858.0,39854.0,0.03097419]
[1610144227022,0.51300034,39858.0,39856.0,0.03097389]
[1610144227330,0.51300034,39858.0,39855.0,0.03097474]
[1610144227529,0.51300034,39858.0,39857.0,0.03097481]
[1610144227725,0.64932642,39858.0,39857.0,0.03097481]
[1610144227936,0.64932642,39858.0,39856.0,0.03097473]
[1610144228221,0.64932642,39858.0,39857.0,0.03097659]
[1610144228621,0.64932642,39858.0,39854.0,0.03097728]
[1610144228821,0.64932642,39858.0,39857.0,0.03097817]
[1610144229224,0.64932642,39858.0,39855.0,0.03097881]
[1610144229423,0.64932642,39858.0,39857.0,0.03097855]
[1610144229623,0.64932642,39858.0,39856.0,0.03097906]
[1610144230024,0.64932642,39858.0,39857.0,0.03097952]
[1610144230425,0.64932642,39858.0,39854.0,0.03098056]
[1610144230825,0.64932642,39858.0,39857.0,0.00029596]
[1610144231127,0.64932642,39858.0,39855.0,0.03098075]
[1610144231427,0.64932642,39858.0,39857.0,0.00029596]
[1610144231625,0.64932642,39858.0,39856.0,0.0309814]
[1610144231828,0.65697544,39858.0,39857.0,0.00029596]
[1610144232225,0.65697544,39858.0,39856.0,0.00029598]
[1610144232525,0.65697544,39858.0,39854.0,0.03098222]
[1610144232725,3.5626,39857.0,39854.0,0.03098222]
[1610144232926,3.5626,39857.0,39854.0,0.03068624]
[1610144233127,3.5626,39857.0,39855.0,0.00029598]
[1610144233328,3.5626,39857.0,39854.0,0.03098222]
[1610144233627,3.5626,39857.0,39856.0,0.00029598]
[1610144233829,3.5626,39857.0,39855.0,0.00029598]
[1610144234330,3.5626,39857.0,39856.0,0.00029598]
[1610144234729,3.5626,39857.0,39854.0,0.03098222]
[1610144234929,3.5626,39857.0,39856.0,0.00029598]
[1610144235130,3.5626,39857.0,39855.0,0.00029598]
[1610144235533,3.5626,39857.0,39854.0,0.03098222]
[1610144235732,3.5626,39857.0,39856.0,0.00029598]
[1610144236031,0.00768289,39857.0,39855.0,0.00029598]
[1610144236233,0.00768289,39857.0,39856.0,0.00029598]
[1610144236836,0.02290312,39857.0,39854.0,0.03098222]
[1610144237032,0.02290312,39857.0,39856.0,0.00029598]
[1610144237233,0.02290312,39857.0,39855.0,0.00029598]
[1610144237533,0.00769286,39856.0,39854.0,0.03098222]
[1610144237934,0.00769286,39856.0,39854.0,0.03068624]
[1610144238134,0.00769286,39856.0,39855.0,0.00029599]
[1610144238337,0.00769286,39856.0,39854.0,0.03098223]
[1610144238535,0.00769286,39856.0,39855.0,0.00029599]
[1610144238936,0.00769602,39857.0,39854.0,0.03098223]
[1610144239136,0.00769602,39857.0,39855.0,0.00029599]
[1610144239738,0.00769283,39856.0,39854.0,0.03098223]
[1610144239937,0.00769283,39856.0,39854.0,0.03068624]
[1610144240238,0.02292987,39856.0,39855.0,0.000296]
[1610144240437,0.02292987,39856.0,39854.0,0.03098224]
[1610144240639,0.46792891,39856.0,39855.0,0.000296]
[1610144241040,0.00769305,39855.0,39854.0,0.03098224]
[1610144241339,0.01524354,39855.0,39854.0,0.03068624]
[1610144241640,0.01524354,39855.0,39854.0,0.03098224]
[1610144242841,0.01524354,39855.0,39854.0,0.03068624]
[1610144243041,0.01524354,39855.0,39854.0,0.03098224]
[1610144243642,0.02293972,39855.0,39854.0,0.03098224]
[1610144244843,0.00769618,39855.0,39854.0,0.03068624]
[1610144245042,0.00769618,39855.0,39854.0,0.03098223]
[1610144246144,0.02295233,39856.0,39854.0,0.03098223]
[1610144246443,0.00771479,39855.0,39854.0,0.03098223]
[1610144247450,0.45383087,39855.0,39854.0,0.03098223]
[1610144247646,0.45383087,39855.0,39854.0,0.00029599]
[1610144249953,0.99943642,39855.0,39854.0,0.00029599]
[1610144251150,4.54943642,39855.0,39854.0,0.00029599]
[1610144251551,4.91737914,39855.0,39854.0,0.00029599]
[1610144254951,4.91737914,39855.0,39854.0,0.03098429]
[1610144255952,1.36737914,39855.0,39854.0,0.03098429]
[1610144256553,0.99943642,39855.0,39854.0,0.03098429]
[1610144259659,4.35156974,39855.0,39854.0,0.03098429]
[1610144259857,3.98363642,39855.0,39854.0,0.03098429]
[1610144260258,5.57256388,39855.0,39854.0,0.03098429]
[1610144261261,2.58836388,39855.0,39854.0,0.03098429]
[1610144261860,1.66847682,39855.0,39854.0,0.03098429]
[1610144263362,4.84897682,39855.0,39854.0,0.03098429]
[1610144264064,4.54788386,39855.0,39854.0,0.03098429]
[1610144264365,5.21350265,39855.0,39854.0,0.03098429]
[1610144264766,5.76543298,39855.0,39854.0,0.03098429]
[1610144267870,5.21350265,39855.0,39854.0,0.03098429]
[1610144269471,5.76543531,39855.0,39854.0,0.03098429]
[1610144270270,5.21350265,39855.0,39854.0,0.03098429]
[1610144270472,4.54788386,39855.0,39854.0,0.03098429]
[1610144271071,1.36738386,39855.0,39854.0,0.03098429]
[1610144271772,0.99943642,39855.0,39854.0,0.03098429]
[1610144272272,2.02880493,39855.0,39854.0,0.03098429]
[1610144272471,0.99943642,39855.0,39854.0,0.03098429]
[1610144273276,5.35571945,39855.0,39854.0,0.03098429]
[1610144273673,4.69458753,39855.0,39854.0,0.03098429]
[1610144274675,4.69458753,39855.0,39854.0,0.02408429]
[1610144276679,4.32663642,39855.0,39854.0,0.02408429]
[1610144277179,3.78103087,39855.0,39854.0,0.02408429]
[1610144277779,4.68643476,39855.0,39854.0,0.02408429]
[1610144278881,4.31848934,39855.0,39854.0,0.02408429]
[1610144279181,3.78103087,39855.0,39854.0,0.02408429]
[1610144281386,4.31951912,39855.0,39854.0,0.02408429]
[1610144281786,4.68745137,39855.0,39854.0,0.02408429]
[1610144284387,5.34717561,39855.0,39854.0,0.02408429]
[1610144285789,5.89908391,39855.0,39854.0,0.02408429]
[1610144286090,2.57188391,39855.0,39854.0,0.02408429]
[1610144286291,2.57188391,39855.0,39854.0,3.50838429]
[1610144286890,2.57188391,39855.0,39854.0,3.56975775]
[1610144287091,0.00768973,39857.0,39854.0,1.58545775]
[1610144287391,0.51300034,39858.0,39854.0,1.58545775]
[1610144287593,0.51300034,39858.0,39855.0,0.09230385]
[1610144287893,0.51300034,39858.0,39857.0,5.3776]
[1610144288292,0.51300034,39858.0,39857.0,5.60622504]
[1610144291297,0.51300034,39858.0,39857.0,5.54488755]
[1610144292396,0.51300034,39858.0,39857.0,5.60621716]
[1610144295999,0.51300034,39858.0,39857.0,5.54488755]
[1610144297002,0.51300034,39858.0,39857.0,5.60621613]
[1610144307217,0.51300034,39858.0,39857.0,5.69818926]
[1610144314627,0.51300034,39858.0,39857.0,4.10621613]
[1610144319732,0.51300034,39858.0,39857.0,0.22861613]
[1610144320131,0.51300034,39858.0,39857.0,0.16728755]